fUST/lending_fUST_20250129
["ID","MTS","AMOUNT","RATE_DAILY","PERIOD"]
[350770179,1738116642421,-314.356,0.00017351,5]
[350770180,1738116642432,-650.65101388,0.00017351,5]
[350770183,1738116643183,-471.03760589,0.00016509,2]
[350770184,1738116643198,-42.30873228,0.00016509,2]
[350770185,1738116643215,-500.74669833,0.00016517,2]
[350770186,1738116643230,-11166.0176772,0.00017351,5]
[350770187,1738116643243,-151.72468162,0.00017351,5]
[350770188,1738116643252,-500.0,0.00017351,2]
[350770189,1738116643262,-395.0,0.00017367,2]
[350770190,1738116643272,-151.37450619,0.00017446,2]
[350770191,1738116643282,-500.0,0.00017468,2]
[350770192,1738116643292,-59.25878587,0.00017468,2]
[350770193,1738116643305,-440.74121413,0.00017468,2]
[350770194,1738116643314,-500.0,0.00017476,2]
[350770195,1738116643325,-390.01693726,0.00017477,2]
[350770196,1738116643334,-551.63676591,0.00017477,2]
[350770197,1738116643343,-535.33618911,0.00017477,2]
[350770198,1738116643353,-500.0,0.00017477,2]
[350770199,1738116643363,-500.0,0.00017477,2]
[350770200,1738116643372,-531.82015945,0.00017477,2]
[350770201,1738116643381,-276.87267319,0.00017477,2]
[350770202,1738116643391,-500.0,0.00017477,2]
[350770203,1738116643401,-104.59587604,0.00017477,2]
[350770204,1738116643459,-424.79412396,0.00017477,2]
[350770205,1738116643468,-510.08933003,0.00017477,2]
[350770227,1738116645836,-520.29954053,0.00016517,2]
[350770228,1738116645847,-3759.87,0.00016518,2]
[350770229,1738116645857,-3759.87,0.00016655,2]
[350770230,1738116645867,-3759.87,0.00016792,2]
[350770231,1738116645876,-3759.87,0.00016929,2]
[350770232,1738116645886,-3759.87,0.00017066,2]
[350770233,1738116645895,-3759.87,0.00017203,2]
[350770234,1738116645905,-3759.87,0.0001734,2]
[350770235,1738116645915,-2.81066997,0.00017477,2]
[350770236,1738116645928,-504.91999797,0.00017488,2]
[350770237,1738116645937,-500.0,0.00017564,2]
[350770238,1738116645947,-432.67540583,0.00017605,2]
[350770239,1738116645957,-500.0,0.00017605,2]
[350770240,1738116645967,-500.0,0.00017613,2]
[350770241,1738116645976,-500.0,0.00017614,2]
[350770242,1738116645986,-175.12169929,0.00017614,2]
[350770243,1738116645996,-500.0,0.00017614,2]
[350770244,1738116646005,-529.39,0.00017614,2]
[350770245,1738116646015,-512.9,0.00017614,2]
[350770247,1738116646025,-500.0,0.00017742,2]
[350770249,1738116646035,-500.0,0.0001775,2]
[350770251,1738116646044,-500.0,0.00017751,2]
[350770253,1738116646055,-500.0,0.00017751,2]
[350770255,1738116646064,-529.39,0.00017751,2]
[350770256,1738116646075,-512.9,0.00017751,2]
[350770257,1738116646086,-500.0,0.00017879,2]
[350770258,1738116646098,-500.0,0.00017887,2]
[350770259,1738116646107,-354.15245624,0.00017887,2]
[350770260,1738116646117,-500.0,0.00017888,2]
[350770261,1738116646127,-500.0,0.00017888,2]
[350770262,1738116646137,-529.39,0.00017888,2]
[350770263,1738116646147,-512.9,0.00017888,2]
[350770264,1738116646157,-140316.194991,0.00017889,5]
[350770265,1738116646167,-150.0,0.00017909,2]
[350770266,1738116646177,-150.0,0.00017909,2]
[350770267,1738116646187,-2043.0,0.00017909,2]
[350770268,1738116646198,-537.0,0.00017909,2]
[350770269,1738116646208,-914.99,0.00018,2]
[350770270,1738116646218,-500.0,0.00018016,2]
[350770271,1738116646228,-500.0,0.00018024,2]
[350770272,1738116646238,-409.22767117,0.00018025,2]
[350770273,1738116646249,-500.0,0.00018025,2]
[350770274,1738116646258,-529.39,0.00018025,2]
[350770275,1738116646267,-512.9,0.00018025,2]
[350770276,1738116646277,-198.95894463,0.00018153,2]
[350770277,1738116646287,-500.0,0.00018161,2]
[350770278,1738116646297,-500.0,0.00018162,2]
[350770279,1738116646307,-529.39,0.00018162,2]
[350770280,1738116646316,-512.9,0.00018162,2]
[350770281,1738116646326,-500.0,0.00018298,2]
[350770282,1738116646336,-500.0,0.00018299,2]
[350770283,1738116646348,-529.39,0.00018299,2]
[350770284,1738116646358,-512.9,0.00018299,2]
[350770285,1738116646369,-500.0,0.00018435,2]
[350770286,1738116646380,-500.0,0.00018436,2]
[350770287,1738116646390,-529.39,0.00018436,2]
[350770288,1738116646399,-512.9,0.00018436,2]
[350770289,1738116646409,-151.37450619,0.00018473,2]
[350770290,1738116646418,-500.0,0.00018572,2]
[350770291,1738116646428,-500.0,0.00018573,2]
[350770292,1738116646438,-529.39,0.00018573,2]
[350770293,1738116646447,-512.9,0.00018573,2]
[350770294,1738116646457,-587.0,0.00018596,2]
[350770295,1738116646466,-370.968,0.00018641,2]
[350770296,1738116646476,-500.0,0.00018709,2]
[350770297,1738116646486,-500.0,0.0001871,2]
[350770298,1738116646495,-529.39,0.0001871,2]
[350770299,1738116646504,-512.9,0.0001871,2]
[350770300,1738116646514,-502.35809235,0.00018761,2]
[350770301,1738116646523,-507.89274129,0.00018761,2]
[350770302,1738116646533,-631.32959503,0.00018761,2]
[350770303,1738116646543,-183.66,0.00018846,2]
[350770304,1738116646553,-500.0,0.00018847,2]
[350770305,1738116646562,-529.39,0.00018847,2]
[350770306,1738116646572,-512.9,0.00018847,2]
[350770307,1738116646581,-2982.67704235,0.000189,2]
[350770308,1738116646590,-359.0883645,0.00018932,2]
[350770309,1738116646600,-354.2307862,0.00018932,2]
[350770310,1738116646609,-212.3022332,0.00018932,2]
[350770311,1738116646619,-500.0,0.00018984,2]
[350770312,1738116646629,-529.39,0.00018984,2]
[350770313,1738116646638,-512.9,0.00018984,2]
[350770314,1738116646648,-302.8788636,0.00019,2]
[350770315,1738116646657,-302.90913937,0.00019,2]
[350770316,1738116646667,-297.79568497,0.00019012,2]
[350770317,1738116646676,-161.0,0.00019037,2]
[350770318,1738116646686,-161.0,0.00019037,2]
[350770319,1738116646812,-161.0,0.00019037,2]
[350770320,1738116646827,-161.0,0.00019037,2]
[350770321,1738116646837,-161.0,0.00019037,2]
[350770322,1738116646846,-161.0,0.00019037,2]
[350770323,1738116646856,-161.0,0.00019037,2]
[350770324,1738116646866,-161.0,0.00019037,2]
[350770325,1738116646876,-161.0,0.00019037,2]
[350770326,1738116646886,-161.0,0.00019037,2]
[350770327,1738116646896,-161.0,0.00019037,2]
[350770328,1738116646906,-161.0,0.00019037,2]
[350770329,1738116646916,-161.0,0.00019037,2]
[350770330,1738116646930,-502.85312085,0.0001909,2]
[350770331,1738116646939,-504.80851235,0.0001909,2]
[350770332,1738116646949,-502.70731322,0.0001909,2]
[350770333,1738116646958,-501.000257,0.0001909,2]
[350770334,1738116646969,-501.7610746,0.0001909,2]
[350770335,1738116646979,-607.6328422,0.0001909,2]
[350770336,1738116646989,-500.79496731,0.0001909,2]
[350770337,1738116646999,-501.3464324,0.0001909,2]
[350770338,1738116647009,-531.25175389,0.0001909,2]
[350770339,1738116647019,-504.28762451,0.0001909,2]
[350770340,1738116647029,-500.0,0.0001909,2]
[350770341,1738116647038,-507.78433347,0.0001909,2]
[350770342,1738116647049,-500.0,0.0001909,2]
[350770343,1738116647058,-500.0,0.0001909,2]
[350770344,1738116647068,-507.69927305,0.0001909,2]
[350770345,1738116647077,-500.0,0.0001909,2]
[350770346,1738116647087,-504.01052833,0.0001909,2]
[350770347,1738116647096,-508.66266606,0.0001909,2]
[350770348,1738116647106,-500.0,0.0001909,2]
[350770349,1738116647115,-504.29596468,0.0001909,2]
[350770350,1738116647125,-500.0,0.0001909,2]
[350770351,1738116647134,-1000.0,0.0001909,2]
[350770352,1738116647144,-503.61334107,0.0001909,2]
[350770353,1738116647153,-501.23005317,0.0001909,2]
[350770354,1738116647162,-500.94755264,0.0001909,2]
[350770355,1738116647172,-501.55408983,0.0001909,2]
[350770356,1738116647181,-502.44916778,0.0001909,2]
[350770357,1738116647191,-334.1863682,0.0001909,2]
[350770358,1738116647200,-500.0,0.0001909,2]
[350770359,1738116647210,-501.01434013,0.0001909,2]
[350770360,1738116647219,-569.21035784,0.0001909,2]
[350770361,1738116647229,-502.35716878,0.0001909,2]
[350770362,1738116647238,-505.24150788,0.0001909,2]
[350770363,1738116647247,-446.34288222,0.0001909,2]
[350770364,1738116647257,-500.74287687,0.0001909,2]
[350770365,1738116647267,-501.67150542,0.0001909,2]
[350770366,1738116647276,-501.13571995,0.0001909,2]
[350770367,1738116647285,-507.85042121,0.0001909,2]
[350770368,1738116647295,-503.04067732,0.0001909,2]
[350770369,1738116647305,-501.80336178,0.0001909,2]
[350770370,1738116647314,-501.50689531,0.0001909,2]
[350770371,1738116647324,-503.91689976,0.0001909,2]
[350770372,1738116647333,-630.51297817,0.0001909,2]
[350770373,1738116647342,-504.99417213,0.0001909,2]
[350770374,1738116647351,-501.90248918,0.0001909,2]
[350770375,1738116647360,-502.45817998,0.0001909,2]
[350770376,1738116647370,-500.60379772,0.0001909,2]
[350770377,1738116647379,-500.83115464,0.0001909,2]
[350770378,1738116647389,-501.56501761,0.0001909,2]
[350770379,1738116647398,-500.97957766,0.0001909,2]
[350770380,1738116647407,-507.21600722,0.0001909,2]
[350770381,1738116647416,-500.0,0.0001909,2]
[350770382,1738116647426,-531.86419752,0.0001909,2]
[350770383,1738116647435,-503.64904346,0.0001909,2]
[350770384,1738116647444,-505.04201128,0.0001909,2]
[350770385,1738116647454,-503.45580174,0.0001909,2]
[350770386,1738116647462,-503.19725641,0.0001909,2]
[350770387,1738116647472,-506.92965932,0.0001909,2]
[350770388,1738116647482,-505.05631068,0.0001909,2]
[350770389,1738116647491,-508.13626382,0.0001909,2]
[350770390,1738116647500,-503.25856372,0.0001909,2]
[350770391,1738116647509,-501.67716084,0.0001909,2]
[350770392,1738116647519,-501.71882532,0.0001909,2]
[350770393,1738116647528,-500.0,0.0001909,2]
[350770394,1738116647538,-194.69190493,0.0001909,2]
[350770395,1738116647548,-504.01018062,0.0001909,2]
[350770396,1738116647557,-502.36432222,0.0001909,2]
[350770397,1738116647566,-501.13974454,0.0001909,2]
[350770398,1738116647575,-503.0238115,0.0001909,2]
[350770399,1738116647584,-502.84961292,0.0001909,2]
[350770400,1738116647595,-500.0,0.0001909,2]
[350770401,1738116647604,-504.57868983,0.0001909,2]
[350770402,1738116647613,-508.63385121,0.0001909,2]
[350770403,1738116647622,-504.55770866,0.0001909,2]
[350770404,1738116647631,-504.44841282,0.0001909,2]
[350770405,1738116647640,-510.17462129,0.0001909,2]
[350770406,1738116647650,-500.0,0.00019121,2]
[350770407,1738116647659,-529.39,0.00019121,2]
[350770408,1738116647668,-512.9,0.00019121,2]
[350770409,1738116647677,-500.0,0.00019178,2]
[350770410,1738116647687,-500.0,0.00019178,2]
[350770411,1738116647696,-500.0,0.00019178,2]
[350770412,1738116647706,-500.0,0.00019178,2]
[350770413,1738116647716,-500.0,0.00019178,2]
[350770414,1738116647725,-500.0,0.00019178,2]
[350770415,1738116647734,-500.0,0.00019178,2]
[350770416,1738116647744,-500.0,0.00019178,2]
[350770417,1738116647753,-500.0,0.00019178,2]
[350770418,1738116647763,-500.0,0.00019178,2]
[350770419,1738116647772,-403.83493443,0.00019178,2]
[350770420,1738116647782,-500.0,0.00019178,2]
[350770421,1738116647792,-500.0,0.00019178,2]
[350770422,1738116647802,-500.0,0.00019178,2]
[350770423,1738116647811,-500.0,0.00019178,2]
[350770424,1738116647821,-500.0,0.00019178,2]
[350770425,1738116647830,-500.0,0.00019178,2]
[350770426,1738116647839,-500.0,0.00019178,2]
[350770427,1738116647848,-500.0,0.00019178,2]
[350770428,1738116647858,-502.30403151,0.00019178,2]
[350770429,1738116647867,-160.874259,0.00019178,2]
[350770430,1738116647877,-500.0,0.00019187,2]
[350770431,1738116647887,-316.73390448,0.0001919,2]
[350770432,1738116647896,-302.90913937,0.0001919,2]
[350770433,1738116647907,-171.52,0.00019226,2]
[350770434,1738116647916,-506.11892874,0.00019227,2]
[350770435,1738116647930,-513.07998144,0.00019227,2]
[350770436,1738116647939,-508.42411831,0.00019227,2]
[350770437,1738116647948,-500.0,0.00019227,2]
[350770438,1738116647957,-515.19476654,0.00019227,2]
[350770439,1738116647968,-515.30303953,0.00019227,2]
[350770440,1738116647977,-1012.14086884,0.00019227,2]
[350770441,1738116647988,-208.58685973,0.00019227,2]
[350770442,1738116647998,-515.61803568,0.00019227,2]
[350770443,1738116648008,-217.96991467,0.00019227,2]
[350770444,1738116648017,-211.832568,0.00019227,2]
[350770445,1738116648026,-151.0,0.00019227,2]
[350770446,1738116648036,-211.832568,0.00019227,2]
[350770447,1738116648045,-151.0,0.00019227,2]
[350770448,1738116648055,-151.0,0.00019227,2]
[350770449,1738116648064,-151.0,0.00019227,2]
[350770450,1738116648076,-151.0,0.00019227,2]
[350770451,1738116648085,-151.0,0.00019227,2]
[350770452,1738116648095,-500.0,0.00019258,2]
[350770453,1738116648104,-529.39,0.00019258,2]
[350770454,1738116648114,-512.9,0.00019258,2]
[350770455,1738116648123,-539.0,0.0001929,2]
[350770456,1738116648132,-151.0,0.000193,2]
[350770457,1738116648141,-151.0,0.000193,2]
[350770458,1738116648151,-152.155522,0.000193,2]
[350770459,1738116648160,-151.0,0.000193,2]
[350770460,1738116648170,-10089.12606196,0.000193,5]
[350770461,1738116648179,-256.46572972,0.00019364,2]
[350770462,1738116648189,-2500.0,0.00019372,2]
[350770463,1738116648199,-151.0,0.00019372,2]
[350770464,1738116648209,-151.0,0.00019372,2]
[350770465,1738116648218,-376.411279,0.00019372,2]
[350770466,1738116648228,-376.411279,0.00019372,2]
[350770467,1738116648237,-151.0,0.00019372,2]
[350770468,1738116648247,-302.90913937,0.0001938,2]
[350770469,1738116648256,-2500.0,0.0001938,2]
[350770470,1738116648265,-2500.0,0.00019389,2]
[350770471,1738116648275,-387.19,0.00019395,2]
[350770472,1738116648284,-529.39,0.00019395,2]
[350770473,1738116648294,-512.9,0.00019395,2]
[350770474,1738116648304,-2500.0,0.00019398,2]
[350770475,1738116648313,-153.600231,0.00019398,2]
[350770476,1738116648323,-151.0,0.00019398,2]
[350770477,1738116648333,-1337.43920455,0.000194,2]
[350770478,1738116648348,-6092.56079545,0.000194,2]
[350770479,1738116648358,-153.204329,0.000194,2]
[350770480,1738116648367,-194.033666,0.000194,2]
[350770481,1738116648377,-194.033666,0.000194,2]
[350770482,1738116648387,-151.0,0.000194,2]
[350770483,1738116648396,-151.0,0.000194,2]
[350770484,1738116648406,-151.0,0.000194,2]
[350770485,1738116648415,-151.0,0.000194,2]
[350770486,1738116648425,-151.0,0.000194,2]
[350770487,1738116648435,-151.0,0.000194,2]
[350770488,1738116648445,-151.0,0.000194,2]
[350770489,1738116648455,-7613.74191235,0.000194,2]
[350770490,1738116648464,-2500.0,0.00019407,2]
[350770491,1738116648474,-2500.0,0.00019416,2]
[350770492,1738116648483,-2500.0,0.00019424,2]
[350770493,1738116648494,-2500.0,0.00019433,2]
[350770494,1738116648503,-2500.0,0.00019442,2]
[350770495,1738116648513,-1376.54066186,0.00019442,2]
[350770496,1738116648523,-1033.14577645,0.00019472,2]
[350770497,1738116648534,-500.0,0.00019473,2]
[350770498,1738116648543,-273.33354426,0.00019473,2]
[350770499,1738116648553,-500.0,0.00019473,2]
[350770500,1738116648562,-29253.22067674,0.0001949,15]
[350770501,1738116648574,-7675.18485247,0.0001949,15]
[350770502,1738116648586,-21441.74697953,0.0001949,15]
[350770503,1738116648598,-1559.37722,0.0001949,15]
[350770505,1738116679593,214.36771,0.00013973,2]
[350770506,1738116715003,160.06470928,0.0001506,2]
[350770507,1738116837031,300.0,0.0001506,2]
[350770509,1738116969829,48785.1956,0.0002,120]
[350770510,1738116969865,50000.0,0.0002,120]
[350770511,1738116969890,1584.2,0.0002,120]
[350770512,1738116969914,500.0,0.0002,120]
[350770513,1738116969942,370.6044,0.0002,120]
[350770514,1738117016248,349.480423,0.00014989,2]
[350770515,1738117078462,2000.0,0.00015101,2]
[350770517,1738117195723,1747.7038353,0.00014854,2]
[350770605,1738117832116,-300.0,0.00015212,2]
[350770607,1738117832125,-900.000002,0.00015213,2]
[350770609,1738117832136,-15225.1621865,0.00015213,2]
[350770611,1738117832148,-24900.0,0.00015221,2]
[350770613,1738117832157,-500.0,0.00015499,2]
[350770615,1738117832167,-299.56672062,0.00015499,2]
[350770616,1738117832176,-590.96206493,0.00015499,2]
[350770619,1738117832186,-500.0,0.00015499,2]
[350770620,1738117832195,-58984.30902795,0.000155,2]
[350770622,1738117832207,-546.23320576,0.000155,2]
[350770624,1738117832216,-59588.73647158,0.000155,2]
[350770626,1738117832225,-196.0798321,0.00016332,2]
[350770628,1738117832235,-502.20325643,0.00016438,2]
[350770629,1738117832244,-500.0,0.00016438,2]
[350770631,1738117832253,-505.94655039,0.00016438,2]
[350770633,1738117832262,-634.88201566,0.00016438,2]
[350770635,1738117832271,-504.41389596,0.00016438,2]
[350770637,1738117832280,-500.0,0.00016438,2]
[350770639,1738117832290,-500.0,0.00016438,2]
[350770641,1738117832301,-504.93357318,0.00016438,2]
[350770643,1738117832311,-502.9593356,0.00016438,2]
[350770645,1738117832320,-500.0,0.00016438,2]
[350770647,1738117832329,-501.88077622,0.00016438,2]
[350770649,1738117832340,-506.17030345,0.00016438,2]
[350770651,1738117832349,-500.0,0.00016438,2]
[350770653,1738117832358,-506.2450638,0.00016438,2]
[350770654,1738117832367,-503.62090026,0.00016438,2]
[350770655,1738117832379,-201.31922188,0.00016438,2]
[350770656,1738117832388,-502.85123144,0.00016438,2]
[350770657,1738117832398,-509.93563079,0.00016438,2]
[350770658,1738117832407,-504.33975111,0.00016438,2]
[350770659,1738117832416,-500.0,0.00016438,2]
[350770660,1738117832425,-504.35062579,0.00016438,2]
[350770661,1738117832434,-500.0,0.00016438,2]
[350770662,1738117832443,-502.72580234,0.00016438,2]
[350770663,1738117832452,-500.0,0.00016438,2]
[350770664,1738117832462,-500.0,0.00016438,2]
[350770665,1738117832470,-509.7898291,0.00016438,2]
[350770666,1738117832480,-500.0,0.00016438,2]
[350770667,1738117832490,-500.0,0.00016438,2]
[350770668,1738117832500,-500.0,0.00016438,2]
[350770669,1738117832510,-500.0,0.00016438,2]
[350770670,1738117832519,-500.0,0.00016438,2]
[350770671,1738117832528,-504.75786176,0.00016438,2]
[350770672,1738117832539,-537.18992822,0.00016438,2]
[350770673,1738117832551,-500.0,0.00016438,2]
[350770674,1738117832561,-500.0,0.00016438,2]
[350770675,1738117832570,-501.49701019,0.00016438,2]
[350770676,1738117832579,-500.0,0.00016438,2]
[350770677,1738117832589,-312.75129097,0.00016438,2]
[350770678,1738117832598,-630.00843714,0.00016438,2]
[350770679,1738117832608,-500.0,0.00016438,2]
[350770680,1738117832617,-500.0,0.00016438,2]
[350770681,1738117832626,-500.0,0.00016438,2]
[350770682,1738117832636,-500.0,0.00016438,2]
[350770683,1738117832645,-500.0,0.00016438,2]
[350770684,1738117832656,-500.0,0.00016438,2]
[350770685,1738117832666,-500.0,0.00016438,2]
[350770686,1738117832675,-502.62246654,0.00016438,2]
[350770687,1738117832685,-507.20120319,0.00016438,2]
[350770688,1738117832696,-264.97568326,0.00016438,2]
[350770689,1738117832706,-504.83766611,0.00016438,2]
[350770690,1738117832717,-502.15033407,0.00016438,2]
[350770691,1738117832727,-504.33058899,0.00016438,2]
[350770692,1738117832738,-602.51925313,0.00016438,2]
[350770693,1738117832748,-500.0,0.00016438,2]
[350770694,1738117832757,-504.61248483,0.00016438,2]
[350770695,1738117832767,-504.38572874,0.00016438,2]
[350770696,1738117832777,-500.74117486,0.00016438,2]
[350770697,1738117832786,-500.0,0.00016438,2]
[350770698,1738117832796,-500.0,0.00016438,2]
[350770699,1738117832805,-501.96117525,0.00016438,2]
[350770700,1738117832815,-504.85670148,0.00016438,2]
[350770701,1738117832826,-500.0,0.00016438,2]
[350770702,1738117832836,-500.55998819,0.00016438,2]
[350770703,1738117832847,-501.22029431,0.00016438,2]
[350770704,1738117832857,-469.84780891,0.00016438,2]
[350770705,1738117832866,-500.0,0.00016438,2]
[350770706,1738117832876,-500.0,0.00016438,2]
[350770707,1738117832886,-500.0,0.00016438,2]
[350770708,1738117832897,-501.33150779,0.00016438,2]
[350770709,1738117832906,-647.89419303,0.00016438,2]
[350770710,1738117832915,-502.7672813,0.00016438,2]
[350770711,1738117832925,-500.0,0.00016438,2]
[350770712,1738117832934,-500.0,0.00016438,2]
[350770713,1738117832943,-500.0,0.00016438,2]
[350770714,1738117832952,-500.0,0.00016438,2]
[350770715,1738117832962,-500.0,0.00016438,2]
[350770716,1738117832971,-500.0,0.00016438,2]
[350770717,1738117832980,-500.0,0.00016438,2]
[350770718,1738117832990,-500.0,0.00016438,2]
[350770719,1738117833000,-513.33717015,0.00016438,2]
[350770720,1738117833009,-500.0,0.00016438,2]
[350770721,1738117833019,-500.0,0.00016438,2]
[350770722,1738117833029,-500.0,0.00016438,2]
[350770723,1738117833038,-500.0,0.00016438,2]
[350770724,1738117833048,-500.0,0.00016438,2]
[350770725,1738117833058,-500.0,0.00016438,2]
[350770726,1738117833068,-500.0,0.00016438,2]
[350770727,1738117833077,-500.0,0.00016438,2]
[350770728,1738117833087,-500.0,0.00016438,2]
[350770729,1738117833096,-500.0,0.00016438,2]
[350770730,1738117833106,-505.57512211,0.00016438,2]
[350770731,1738117833116,-500.62075868,0.00016438,2]
[350770732,1738117833125,-500.0,0.00016438,2]
[350770733,1738117833135,-501.75836123,0.00016438,2]
[350770734,1738117833144,-500.0,0.00016438,2]
[350770735,1738117833154,-500.0,0.00016438,2]
[350770736,1738117833164,-500.0,0.00016438,2]
[350770737,1738117833175,-500.0,0.00016438,2]
[350770738,1738117833184,-195.53403736,0.00016438,2]
[350770739,1738117833194,-582.92510777,0.00016438,2]
[350770740,1738117833204,-500.0,0.00016438,2]
[350770741,1738117833347,-501.63401492,0.00016438,2]
[350770742,1738117833357,-500.0,0.00016438,2]
[350770743,1738117833368,-500.0,0.00016438,2]
[350770744,1738117833378,-500.0,0.00016438,2]
[350770745,1738117833388,-500.77019831,0.00016438,2]
[350770746,1738117833399,-502.06601399,0.00016438,2]
[350770747,1738117833408,-506.38420365,0.00016438,2]
[350770748,1738117833417,-500.0,0.00016438,2]
[350770749,1738117833427,-501.28241022,0.00016438,2]
[350770750,1738117833437,-501.98773804,0.00016438,2]
[350770751,1738117833446,-500.0,0.00016438,2]
[350770752,1738117833456,-509.59716847,0.00016438,2]
[350770753,1738117833466,-500.0,0.00016438,2]
[350770754,1738117833476,-500.0,0.00016438,2]
[350770755,1738117833485,-501.76985725,0.00016438,2]
[350770756,1738117833495,-500.0,0.00016438,2]
[350770757,1738117833504,-500.0,0.00016438,2]
[350770758,1738117833513,-501.45280668,0.00016438,2]
[350770759,1738117833523,-500.0,0.00016438,2]
[350770760,1738117833532,-500.0,0.00016438,2]
[350770761,1738117833541,-500.0,0.00016438,2]
[350770762,1738117833551,-502.03757877,0.00016438,2]
[350770763,1738117833561,-500.0,0.00016438,2]
[350770764,1738117833570,-231.77914831,0.00016438,2]
[350770765,1738117833580,-502.58809056,0.00016438,2]
[350770766,1738117833590,-500.0,0.00016438,2]
[350770767,1738117833599,-500.0,0.00016438,2]
[350770768,1738117833608,-500.0,0.00016438,2]
[350770769,1738117833617,-500.0,0.00016438,2]
[350770770,1738117833626,-500.0,0.00016438,2]
[350770771,1738117833637,-503.67201098,0.00016438,2]
[350770772,1738117833646,-432.97628318,0.00016438,2]
[350770773,1738117833655,-477.37636008,0.00016438,2]
[350770774,1738117833665,-500.94927055,0.00016438,2]
[350770775,1738117833674,-500.0,0.00016438,2]
[350770776,1738117833683,-500.0,0.00016438,2]
[350770777,1738117833692,-500.0,0.00016438,2]
[350770778,1738117833702,-500.0,0.00016438,2]
[350770779,1738117833711,-500.0,0.00016438,2]
[350770780,1738117833721,-500.0,0.00016438,2]
[350770781,1738117833730,-500.0,0.00016438,2]
[350770782,1738117833740,-500.0,0.00016438,2]
[350770783,1738117833749,-500.0,0.00016438,2]
[350770784,1738117833759,-500.0,0.00016438,2]
[350770785,1738117833769,-500.0,0.00016438,2]
[350770786,1738117833779,-500.0,0.00016438,2]
[350770787,1738117833788,-500.0,0.00016438,2]
[350770788,1738117833798,-500.0,0.00016438,2]
[350770789,1738117833808,-500.0,0.00016438,2]
[350770790,1738117833818,-618.11,0.00016438,2]
[350770791,1738117833827,-500.0,0.00016438,2]
[350770792,1738117833837,-500.0,0.00016438,2]
[350770793,1738117833846,-575.57,0.00016438,2]
[350770794,1738117833856,-500.0,0.00016438,2]
[350770795,1738117833865,-500.0,0.00016438,2]
[350770796,1738117833874,-500.0,0.00016438,2]
[350770797,1738117833884,-500.0,0.00016438,2]
[350770798,1738117833894,-500.0,0.00016438,2]
[350770799,1738117833903,-500.0,0.00016438,2]
[350770800,1738117833913,-500.0,0.00016438,2]
[350770801,1738117833922,-500.0,0.00016438,2]
[350770802,1738117833932,-500.0,0.00016438,2]
[350770803,1738117833941,-500.0,0.00016438,2]
[350770804,1738117833950,-500.0,0.00016438,2]
[350770805,1738117833959,-500.0,0.00016438,2]
[350770806,1738117833968,-500.0,0.00016438,2]
[350770807,1738117833977,-534.12986993,0.00016438,2]
[350770808,1738117833987,-500.0,0.00016438,2]
[350770809,1738117833996,-500.0,0.00016438,2]
[350770810,1738117834006,-500.0,0.00016438,2]
[350770811,1738117834015,-597.95,0.00016438,2]
[350770812,1738117834025,-500.0,0.00016438,2]
[350770813,1738117834034,-500.0,0.00016438,2]
[350770814,1738117834043,-500.0,0.00016438,2]
[350770815,1738117834053,-500.0,0.00016438,2]
[350770816,1738117834064,-500.0,0.00016438,2]
[350770817,1738117834074,-500.0,0.00016438,2]
[350770818,1738117834083,-500.0,0.00016438,2]
[350770819,1738117834093,-500.0,0.00016438,2]